fUSD/lending_fUSD_20240122
["ID","MTS","AMOUNT","RATE_DAILY","PERIOD"]
[312547440,1705961443498,-150.0,0.00032877,30]
[312547441,1705961443507,-150.0,0.00032877,30]
[312547442,1705961443516,-150.0,0.00032877,30]
[312547443,1705961443526,-150.0,0.00032877,30]
[312547444,1705961443536,-150.0,0.00032877,30]
[312547445,1705961443546,-150.0,0.00032877,30]
[312547446,1705961443555,-150.0,0.00032877,30]
[312547447,1705961443565,-533.47788432,0.00033,2]
[312547448,1705961443574,-959.54356186,0.00033,2]
[312547449,1705961443586,-550.0,0.00033,3]
[312547450,1705961443595,-178.0,0.00033009,2]
[312547451,1705961443604,-313.98,0.00033109,2]
[312547452,1705961443614,-493.61,0.00033165,2]
[312547453,1705961443623,-420.02393067,0.0003318,4]
[312547454,1705961443632,-153.84,0.00033268,2]
[312547455,1705961443643,-728.56638457,0.000335,2]
[312547456,1705961443654,-493.61,0.00033526,2]
[312547457,1705961443663,-493.61,0.00033886,2]
[312547458,1705961443672,-506.61948755,0.00034,4]
[312547459,1705961443681,-1000.0,0.00034,4]
[312547460,1705961443690,-500.0,0.00034,2]
[312547461,1705961443699,-6159.79973704,0.00034,2]
[312547462,1705961443708,-2006.0,0.00034,2]
[312547463,1705961443717,-153.84,0.00034051,2]
[312547464,1705961443727,-5000.0,0.0003409,2]
[312547465,1705961443737,-493.61,0.00034247,2]
[312547466,1705961443747,-153.84,0.00034834,2]
[312547467,1705961443757,-2392.16395606,0.000349,2]
[312547468,1705961443766,-2392.16395605,0.000349,2]
[312547469,1705961443775,-2392.16395605,0.000349,2]
[312547470,1705961443785,-2392.16395605,0.000349,2]
[312547471,1705961443794,-2392.16395605,0.000349,2]
[312547472,1705961443803,-2392.16395605,0.000349,2]
[312547473,1705961443812,-2392.16395605,0.000349,2]
[312547474,1705961443822,-2392.16395605,0.000349,2]
[312547475,1705961443831,-12266.061055,0.00034998,2]
[312547476,1705961443840,-22078.909901,0.00034998,2]
[312547477,1705961443849,-17172.485479,0.00034998,2]
[312547478,1705961443859,-19625.697691,0.00034998,2]
[312547479,1705961443868,-19625.697691,0.00034998,2]
[312547480,1705961443878,-155.0,0.00035,2]
[312547481,1705961443887,-530.5736084,0.00035,4]
[312547482,1705961443897,-448.45815072,0.00035,4]
[312547483,1705961443906,-23510.46100162,0.00035,4]
[312547484,1705961443915,-1261.11643049,0.00035,4]
[312547485,1705961443924,-223.13408688,0.00035,2]
[312547486,1705961443933,-218.40181862,0.00035,2]
[312547487,1705961443942,-218.40181862,0.00035,2]
[312547488,1705961443951,-600.0,0.00035,3]
[312547489,1705961443960,-13314.43671416,0.00035,2]
[312547490,1705961443970,-13314.43671416,0.00035,2]
[312547491,1705961443979,-13314.43671416,0.00035,2]
[312547492,1705961443988,-918.0,0.00035,2]
[312547493,1705961443998,-1000.0,0.00035,2]
[312547494,1705961444007,-25896.0,0.00035071,2]
[312547495,1705961444016,-4170.0,0.00035287,2]
[312547496,1705961444026,-4956.291,0.00035287,2]
[312547497,1705961444035,-2271.0,0.00035287,2]
[312547498,1705961444045,-924.31,0.00035287,2]
[312547499,1705961444054,-19688.0,0.00035287,2]
[312547500,1705961444063,-2903.0,0.00035287,2]
[312547501,1705961444073,-1030.0,0.00035287,2]
[312547502,1705961444082,-313.98,0.00035373,2]
[312547503,1705961444091,-1220.031,0.00035487,2]
[312547504,1705961444101,-403.0,0.00035487,2]
[312547505,1705961444111,-844.311,0.00035487,2]
[312547506,1705961444120,-1852.0,0.00035487,2]
[312547507,1705961444129,-835.0,0.00035487,2]
[312547508,1705961444138,-1822.051,0.00035487,2]
[312547509,1705961444147,-945.0,0.00035487,2]
[312547510,1705961444157,-724.018,0.00035487,2]
[312547511,1705961444166,-1323.172,0.00035487,2]
[312547512,1705961444175,-1252.0,0.00035487,2]
[312547513,1705961444184,-235.0,0.00035487,2]
[312547514,1705961444193,-507.0,0.00035487,2]
[312547515,1705961444203,-838.028,0.00035487,2]
[312547516,1705961444212,-1138.001,0.00035487,2]
[312547517,1705961444221,-368.199,0.00035487,2]
[312547518,1705961444231,-2392.16395605,0.00035532,2]
[312547519,1705961444240,-204.0,0.00035539,23]
[312547520,1705961444250,-434.0,0.0003554,2]
[312547521,1705961444260,-250.0,0.00035616,7]
[312547522,1705961444269,-153.84,0.00035616,2]
[312547523,1705961444278,-506.35485889,0.00035753,7]
[312547524,1705961444287,-150.1,0.000359,2]
[312547525,1705961444297,-5135.59798777,0.00036,7]
[312547526,1705961444306,-1281.0,0.00036,2]
[312547527,1705961444315,-16802.98067918,0.00036,2]
[312547528,1705961444325,-166.99,0.00036,2]
[312547529,1705961444334,-1181.39402857,0.00036301,30]
[312547530,1705961444343,-153.84,0.00036399,2]
[312547531,1705961444356,-178.0,0.00036493,2]
[312547532,1705961444365,-383.64,0.000365,3]
[312547533,1705961444374,-383.64,0.000365,3]
[312547534,1705961444383,-383.64,0.000365,3]
[312547535,1705961444392,-383.64,0.000365,3]
[312547536,1705961444402,-383.64,0.000365,3]
[312547537,1705961444411,-383.64,0.000365,3]
[312547538,1705961444421,-383.64,0.000365,3]
[312547539,1705961444431,-383.64,0.000365,3]
[312547540,1705961444440,-383.64,0.000365,3]
[312547541,1705961444450,-383.64,0.000365,3]
[312547542,1705961444460,-383.64,0.000365,3]
[312547543,1705961444470,-383.64,0.000365,3]
[312547544,1705961444482,-383.64,0.000365,3]
[312547545,1705961444494,-383.64,0.000365,3]
[312547546,1705961444670,-383.64,0.000365,3]
[312547547,1705961444692,-383.64,0.000365,3]
[312547548,1705961444703,-383.64,0.000365,3]
[312547549,1705961444714,-383.64,0.000365,3]
[312547550,1705961444723,-383.64,0.000365,3]
[312547551,1705961444733,-383.64,0.000365,3]
[312547552,1705961444743,-835.0,0.000367,2]
[312547553,1705961444754,-650.0,0.00037,3]
[312547554,1705961444763,-3000.0,0.00037085,2]
[312547555,1705961444773,-2392.16395605,0.00037111,2]
[312547556,1705961444782,-153.84,0.00037182,2]
[312547557,1705961444791,-150.0,0.000373,2]
[312547558,1705961444800,-420.01569595,0.00037474,4]
[312547559,1705961444809,-2341.14923787,0.00037474,2]
[312547560,1705961444819,-313.98,0.00037637,2]
[312547561,1705961444828,-310.54865615,0.00037701,5]
[312547562,1705961444837,-2457.54,0.00037808,2]
[312547563,1705961444846,-1986.24,0.00037808,2]
[312547564,1705961444855,-471.42938719,0.00037864,4]
[312547565,1705961444864,-150.0,0.00037899,30]
[312547566,1705961444873,-150.0,0.00037899,30]
[312547567,1705961444882,-150.0,0.00037899,30]
[312547568,1705961444891,-150.0,0.00037899,30]
[312547569,1705961444899,-150.0,0.00037899,30]
[312547570,1705961444909,-150.0,0.00037899,30]
[312547571,1705961444918,-150.0,0.00037899,30]
[312547572,1705961444927,-174.89352753,0.00037899,2]
[312547573,1705961444936,-150.0,0.00037899,2]
[312547574,1705961444945,-3000.0,0.000379,20]
[312547575,1705961444955,-642961.728232,0.000379,3]
[312547576,1705961444965,-3000.0,0.0003791,20]
[312547577,1705961444975,-3000.0,0.0003792,20]
[312547578,1705961444985,-3000.0,0.0003793,20]
[312547579,1705961444994,-4046.11024,0.0003794,20]
[312547580,1705961445003,-153.84,0.00037965,2]
[312547581,1705961445012,-164.0,0.00038,2]
[312547582,1705961445022,-229.58564176,0.00038094,2]
[312547583,1705961445033,-159.99774198,0.0003815,2]
[312547584,1705961445044,-150.0,0.0003817,2]
[312547585,1705961445054,-390.22628193,0.00038186,2]
[312547586,1705961445063,-268.95619796,0.00038259,10]
[312547587,1705961445072,-268.95619795,0.00038259,10]
[312547588,1705961445082,-268.95619795,0.00038259,10]
[312547589,1705961445091,-268.95619795,0.00038259,10]
[312547590,1705961445101,-268.95619795,0.00038259,10]
[312547591,1705961445110,-1030.0,0.00038287,2]
[312547592,1705961445120,-150.0,0.0003829,2]
[312547593,1705961445129,-150.0,0.00038306,2]
[312547594,1705961445138,-150.0,0.00038322,2]
[312547595,1705961445148,-150.0,0.00038326,2]
[312547596,1705961445157,-150.0,0.00038326,2]
[312547597,1705961445167,-150.0,0.00038336,2]
[312547598,1705961445176,-150.0,0.0003834,2]
[312547599,1705961445185,-150.0,0.00038348,2]
[312547600,1705961445194,-150.0,0.00038352,2]
[312547601,1705961445204,-150.0,0.00038356,2]
[312547602,1705961445213,-150.0,0.00038369,2]
[312547603,1705961445223,-150.0,0.00038369,2]
[312547604,1705961445232,-150.0,0.00038377,2]
[312547605,1705961445241,-150.0,0.00038377,2]
[312547606,1705961445251,-150.0,0.00038388,2]
[312547607,1705961445260,-150.0,0.00038391,2]
[312547608,1705961445270,-150.0,0.00038396,2]
[312547609,1705961445279,-150.0,0.00038401,2]
[312547610,1705961445288,-150.0,0.00038402,2]
[312547611,1705961445297,-150.0,0.0003841,2]
[312547612,1705961445307,-150.0,0.00038424,2]
[312547613,1705961445316,-300.0,0.00038436,2]
[312547614,1705961445325,-150.0,0.00038437,2]
[312547615,1705961445335,-150.0,0.00038438,2]
[312547616,1705961445344,-150.0,0.00038457,2]
[312547617,1705961445357,-150.0,0.00038462,2]
[312547618,1705961445367,-150.0,0.00038463,2]
[312547619,1705961445376,-150.0,0.00038466,2]
[312547621,1705961445385,-150.0,0.00038482,2]
[312547624,1705961445395,-150.0,0.00038485,2]
[312547625,1705961445404,-1138.0,0.00038487,2]
[312547626,1705961445414,-319.0,0.00038487,2]
[312547627,1705961445423,-4425.51274453,0.000385,7]
[312547628,1705961445434,-166.99,0.000385,2]
[312547629,1705961445445,-203.87315099,0.00038504,2]
[312547630,1705961445454,-268.95619795,0.00038507,10]
[312547631,1705961445463,-150.0,0.00038521,2]
[312547632,1705961445473,-1500.0,0.00038526,2]
[312547633,1705961445483,-150.0,0.00038542,2]
[312547634,1705961445492,-150.0,0.00038545,2]
[312547635,1705961445503,-150.0,0.00038549,2]
[312547636,1705961445513,-150.0,0.0003855,2]
[312547637,1705961445523,-150.0,0.00038555,2]
[312547638,1705961445533,-150.0,0.00038557,2]
[312547639,1705961445543,-150.0,0.00038559,2]
[312547640,1705961445552,-150.0,0.00038579,2]
[312547641,1705961445562,-150.0,0.00038599,2]
[312547642,1705961445572,-150.0,0.00038604,2]
[312547643,1705961445582,-150.0,0.00038607,2]
[312547644,1705961445592,-150.0,0.0003863,2]
[312547645,1705961445602,-150.0,0.0003863,2]
[312547646,1705961445612,-150.0,0.0003863,2]
[312547647,1705961445622,-363.37339701,0.00038645,4]
[312547648,1705961445632,-152.06509082,0.00038646,2]
[312547649,1705961445641,-150.0,0.00038648,2]
[312547650,1705961445651,-3000.0,0.0003865,2]
[312547651,1705961445660,-150.0,0.00038653,2]
[312547652,1705961445670,-300.0,0.00038656,2]
[312547653,1705961445679,-150.0,0.00038681,2]
[312547654,1705961445688,-150.0,0.00038681,2]
[312547655,1705961445698,-150.0,0.00038682,2]
[312547656,1705961445708,-150.0,0.00038683,2]
[312547657,1705961445717,-1500.0,0.00038689,2]
[312547658,1705961445727,-2392.16395605,0.00038689,2]
[312547659,1705961445736,-150.0,0.0003869,2]
[312547660,1705961445746,-150.0,0.00038695,2]
[312547661,1705961445756,-150.0,0.00038704,2]
[312547662,1705961445766,-1536.01216782,0.00038712,2]
[312547663,1705961445776,-150.0,0.0003872,2]
[312547664,1705961445785,-150.0,0.00038732,2]
[312547665,1705961445796,-150.0,0.00038742,2]
[312547666,1705961445805,-150.0,0.00038744,2]
[312547667,1705961445816,-150.0,0.00038745,2]
[312547668,1705961445826,-153.84,0.00038747,2]
[312547669,1705961445836,-159.56,0.00038748,15]
[312547670,1705961445845,-150.0,0.00038758,2]
[312547671,1705961445855,-150.0,0.00038763,2]
[312547672,1705961445865,-150.0,0.00038765,2]
[312547673,1705961445875,-150.0,0.00038771,2]
[312547674,1705961445884,-150.0,0.00038774,2]
[312547675,1705961445894,-300.0,0.00038779,2]
[312547676,1705961445903,-150.0,0.00038784,2]
[312547677,1705961445912,-150.0,0.00038788,2]
[312547678,1705961445921,-150.0,0.00038799,2]
[312547679,1705961445931,-26622.50214766,0.000388,4]
[312547680,1705961445940,-150.0,0.00038814,2]
[312547681,1705961445951,-150.0,0.00038833,2]
[312547682,1705961445961,-150.0,0.00038839,2]
[312547683,1705961445971,-193.56298388,0.0003884,4]
[312547684,1705961445980,-150.0,0.00038841,2]
[312547685,1705961445990,-150.0,0.00038848,2]
[312547686,1705961446001,-300.0,0.00038848,2]
[312547687,1705961446011,-300.0,0.00038849,2]
[312547688,1705961446020,-150.0,0.00038853,2]
[312547689,1705961446030,-300.0,0.00038856,2]
[312547690,1705961446039,-300.0,0.00038864,2]
[312547691,1705961446048,-157.15561576,0.0003888,2]
[312547692,1705961446058,-157.15561574,0.0003888,2]
[312547693,1705961446067,-157.15561574,0.0003888,2]
[312547694,1705961446077,-157.15561574,0.0003888,2]
[312547695,1705961446086,-157.15561574,0.0003888,2]
[312547696,1705961446096,-157.15561574,0.0003888,2]
[312547697,1705961446105,-157.15561574,0.0003888,2]
[312547698,1705961446115,-157.15561574,0.0003888,2]
[312547699,1705961446124,-150.0,0.00038882,2]
[312547700,1705961446133,-150.0,0.00038884,2]
[312547701,1705961446142,-300.0,0.00038885,2]
[312547702,1705961446151,-150.0,0.00038886,2]
[312547703,1705961446160,-150.0,0.00038903,2]
[312547704,1705961446169,-150.0,0.00038918,2]
[312547705,1705961446179,-150.0,0.00038921,2]
[312547706,1705961446188,-150.0,0.00038929,2]
[312547707,1705961446197,-150.0,0.00038929,2]
[312547708,1705961446207,-150.0,0.00038934,2]
[312547709,1705961446216,-150.0,0.0003895,2]
[312547710,1705961446226,-150.0,0.00038951,2]
[312547711,1705961446235,-150.0,0.00038954,2]
[312547712,1705961446244,-150.0,0.00038962,2]
[312547713,1705961446255,-150.0,0.00038973,2]
[312547714,1705961446264,-1500.0,0.00038979,2]
[312547715,1705961446273,-150.0,0.00038988,2]
[312547716,1705961446283,-150.0,0.00038989,2]
[312547717,1705961446292,-1500.0,0.00038992,2]
[312547718,1705961446301,-196.67150404,0.00039,4]
[312547719,1705961446311,-976.1034455,0.00039,4]
[312547720,1705961446320,-166.355797,0.00039,10]
[312547721,1705961446330,-500.0,0.00039,2]
[312547722,1705961446342,-700.0,0.00039,3]
[312547723,1705961446354,-150.0,0.00039006,2]
[312547724,1705961446363,-150.0,0.00039006,2]
[312547725,1705961446372,-150.0,0.00039008,2]
[312547726,1705961446381,-150.0,0.00039009,2]
[312547727,1705961446391,-150.0,0.00039011,2]
[312547728,1705961446401,-150.0,0.00039023,2]
[312547729,1705961446410,-300.0,0.00039026,2]
[312547730,1705961446419,-300.0,0.00039033,2]
[312547731,1705961446428,-150.0,0.00039034,2]
[312547732,1705961446438,-155.0,0.00039035,2]
[312547733,1705961446448,-1061.34191461,0.00039035,4]
[312547734,1705961446457,-765.25852332,0.00039035,4]
[312547735,1705961446466,-160.05964323,0.00039035,4]
[312547736,1705961446476,-1019.94027241,0.00039036,20]
[312547737,1705961446485,-300.02,0.00039036,2]
[312547738,1705961446494,-1649.06974856,0.00039036,2]
[312547739,1705961446505,-309.79714423,0.00039037,14]
[312547740,1705961446514,-200.0,0.00039037,2]
[312547741,1705961446523,-150.0,0.0003905,30]
[312547742,1705961446532,-150.0,0.0003905,30]
[312547743,1705961446541,-150.0,0.0003905,30]
[312547744,1705961446550,-150.0,0.0003905,30]
[312547745,1705961446560,-150.0,0.0003905,30]
[312547746,1705961446570,-150.0,0.0003905,30]
[312547747,1705961446580,-186.5227786,0.0003905,30]
[312547748,1705961446591,-44874.5110718,0.00039231,2]
[312547749,1705961446601,-3239.5699751,0.00039231,2]
[312547750,1705961446611,-1601.8909066,0.00039231,2]
[312547751,1705961446621,-150.0,0.00039258,30]
[312547752,1705961446631,-150.0,0.00039258,30]
[312547753,1705961446640,-150.0,0.00039258,30]
[312547754,1705961446650,-150.0,0.00039258,30]
[312547755,1705961446659,-150.0,0.00039258,30]
[312547756,1705961446668,-150.0,0.00039258,30]
[312547757,1705961446678,-174.89352753,0.00039258,2]
[312547758,1705961446687,-150.0,0.00039258,2]
[312547759,1705961446698,-284455.27623022,0.00039259,30]
[312547760,1705961446707,-350000.0,0.00039259,30]
[312547761,1705961446716,-4512.00613206,0.00039259,30]
[312547762,1705961446726,-23615.75809173,0.00039259,11]
[312547763,1705961446735,-217894.59999832,0.00039259,30]
[312547764,1705961446745,-297.86095998,0.00039259,7]
[312547765,1705961446755,-246.43033353,0.00039259,15]
[312547766,1705961446765,-323.35671623,0.00039259,120]
[312547767,1705961446775,-203.14829701,0.00039259,120]
[312547768,1705961446784,-384.3215283,0.00039259,2]
[312547769,1705961446794,-1355.48744054,0.00039286,2]
[312547770,1705961446804,-150.0,0.00039366,2]
[312547771,1705961446814,-238.07965076,0.000395,4]
[312547772,1705961446823,-153.84,0.0003953,2]
[312547773,1705961446832,-662.18360195,0.000399,7]
[312547774,1705961446842,-313.98,0.00039901,2]
[312547775,1705961446851,-178.0,0.00039978,2]
[312547776,1705961446861,-1000.0,0.0004,2]
[312547777,1705961446870,-2500.0,0.0004,21]
[312547778,1705961446879,-2000.0,0.0004,4]
[312547779,1705961446890,-2000.0,0.0004,2]
[312547780,1705961446899,-278.73030459,0.0004,2]
[312547781,1705961446908,-574.259676,0.0004,2]
[312547782,1705961446918,-166.99,0.000401,2]
[312547783,1705961446927,-2392.16395605,0.00040268,5]
[312547784,1705961446936,-153.84,0.00040313,2]
[312547785,1705961446945,-150.0,0.00040375,2]
[312547786,1705961446955,-204.0,0.00040431,31]
[312547787,1705961446964,-150.0,0.00040583,2]
[312547788,1705961446973,-800.0,0.00041,2]
[312547789,1705961446983,-2000.0,0.00041,2]
[312547790,1705961446992,-750.0,0.00041,3]
[312547791,1705961447002,-500.0,0.00041096,2]
[312547792,1705961447012,-500.0,0.00041096,2]
[312547793,1705961447021,-500.0,0.00041096,2]
[312547794,1705961447031,-500.0,0.00041096,2]
[312547795,1705961447040,-500.0,0.00041096,2]
[312547796,1705961447106,-500.0,0.00041096,2]
[312547797,1705961447116,-500.0,0.00041096,2]
[312547798,1705961447125,-500.0,0.00041096,2]
[312547799,1705961447134,-500.0,0.00041096,2]
[312547800,1705961447144,-500.0,0.00041096,2]
[312547801,1705961447153,-500.0,0.00041096,2]
[312547802,1705961447162,-500.0,0.00041096,2]
[312547803,1705961447171,-500.0,0.00041096,2]
[312547804,1705961447181,-500.0,0.00041096,2]
[312547805,1705961447190,-500.0,0.00041096,2]
[312547806,1705961447198,-500.0,0.00041096,2]
[312547807,1705961447209,-500.0,0.00041096,2]
[312547808,1705961447220,-500.0,0.00041096,2]
[312547809,1705961447229,-500.0,0.00041096,2]
[312547810,1705961447238,-500.0,0.00041096,2]
[312547811,1705961447249,-500.0,0.00041096,2]
[312547812,1705961447258,-500.0,0.00041096,2]
[312547813,1705961447268,-500.0,0.00041096,2]
[312547814,1705961447277,-500.0,0.00041096,2]
[312547815,1705961447286,-500.0,0.00041096,2]
[312547816,1705961447295,-500.0,0.00041096,2]
[312547817,1705961447304,-500.0,0.00041096,2]
[312547818,1705961447314,-500.0,0.00041096,2]
[312547819,1705961447323,-500.0,0.00041096,2]
[312547820,1705961447332,-500.0,0.00041096,2]
[312547821,1705961447342,-500.0,0.00041096,2]
[312547822,1705961447356,-500.0,0.00041096,2]
[312547823,1705961447366,-500.0,0.00041096,2]
[312547824,1705961447377,-500.0,0.00041096,2]
[312547825,1705961447387,-500.0,0.00041096,2]
[312547826,1705961447396,-500.0,0.00041096,2]
[312547827,1705961447405,-500.0,0.00041096,2]
[312547828,1705961447415,-500.0,0.00041096,2]
[312547829,1705961447424,-500.0,0.00041096,2]
[312547830,1705961447434,-500.0,0.00041096,2]
[312547831,1705961447444,-500.0,0.00041096,2]
[312547832,1705961447453,-500.0,0.00041096,2]
[312547833,1705961447462,-500.0,0.00041096,2]
[312547834,1705961447471,-500.0,0.00041096,2]
[312547835,1705961447480,-500.0,0.00041096,2]
[312547836,1705961447489,-500.0,0.00041096,2]
[312547837,1705961447499,-500.0,0.00041096,2]
[312547838,1705961447510,-500.0,0.00041096,2]
[312547839,1705961447521,-500.0,0.00041096,2]
[312547840,1705961447531,-500.0,0.00041096,2]
[312547841,1705961447540,-500.0,0.00041096,2]
[312547842,1705961447550,-500.0,0.00041096,2]
[312547843,1705961447559,-500.0,0.00041096,2]
[312547844,1705961447568,-500.0,0.00041096,2]
[312547845,1705961447577,-500.0,0.00041096,2]
[312547846,1705961447586,-500.0,0.00041096,2]
[312547847,1705961447595,-500.0,0.00041096,2]
[312547848,1705961447604,-500.0,0.00041096,2]
[312547849,1705961447613,-500.0,0.00041096,2]
[312547850,1705961447623,-500.0,0.00041096,2]
[312547851,1705961447632,-500.0,0.00041096,2]
[312547852,1705961447641,-500.0,0.00041096,2]
[312547853,1705961447650,-500.0,0.00041096,2]
[312547854,1705961447660,-500.0,0.00041096,2]
[312547855,1705961447669,-500.0,0.00041096,2]
[312547856,1705961447678,-500.0,0.00041096,2]
[312547857,1705961447687,-500.0,0.00041096,2]
[312547858,1705961447697,-500.0,0.00041096,2]
[312547859,1705961447706,-500.0,0.00041096,2]
[312547860,1705961447716,-500.0,0.00041096,2]
[312547861,1705961447726,-500.0,0.00041096,2]
[312547862,1705961447734,-500.0,0.00041096,2]
[312547863,1705961447744,-500.0,0.00041096,2]
[312547864,1705961447755,-500.0,0.00041096,2]
[312547865,1705961447764,-500.0,0.00041096,2]
[312547866,1705961447773,-500.0,0.00041096,2]
[312547867,1705961447782,-500.0,0.00041096,2]
[312547868,1705961447791,-500.0,0.00041096,2]
[312547869,1705961447800,-500.0,0.00041096,2]
[312547870,1705961447809,-500.0,0.00041096,2]
[312547871,1705961447818,-500.0,0.00041096,2]
[312547872,1705961447827,-500.0,0.00041096,2]
[312547873,1705961447836,-500.0,0.00041096,2]
[312547874,1705961447845,-500.0,0.00041096,2]
[312547875,1705961447855,-500.0,0.00041096,2]
[312547876,1705961447864,-500.0,0.00041096,2]
[312547877,1705961447873,-500.0,0.00041096,2]
[312547878,1705961447881,-500.0,0.00041096,2]
[312547879,1705961447890,-500.0,0.00041096,2]
[312547880,1705961447900,-500.0,0.00041096,2]
[312547881,1705961447909,-500.0,0.00041096,2]
[312547882,1705961447918,-500.0,0.00041096,2]
[312547883,1705961447927,-500.0,0.00041096,2]
[312547884,1705961447935,-500.0,0.00041096,2]
[312547885,1705961447944,-500.0,0.00041096,2]
[312547886,1705961447953,-500.0,0.00041096,2]
[312547887,1705961447962,-500.0,0.00041096,2]
[312547888,1705961447971,-500.0,0.00041096,2]
[312547889,1705961447980,-500.0,0.00041096,2]
[312547890,1705961447989,-500.0,0.00041096,2]
[312547891,1705961447998,-500.0,0.00041096,2]
[312547892,1705961448008,-500.0,0.00041096,2]
[312547893,1705961448017,-500.0,0.00041096,2]
[312547894,1705961448026,-500.0,0.00041096,2]
[312547895,1705961448036,-500.0,0.00041096,2]
[312547896,1705961448044,-500.0,0.00041096,2]
[312547897,1705961448053,-500.0,0.00041096,2]
[312547898,1705961448062,-500.0,0.00041096,2]
[312547899,1705961448071,-500.0,0.00041096,2]
[312547900,1705961448080,-500.0,0.00041096,2]
[312547901,1705961448090,-500.0,0.00041096,2]
[312547902,1705961448099,-153.84,0.00041096,2]
[312547903,1705961448108,-151.0,0.00041096,14]
[312547904,1705961448117,-151.0,0.00041096,14]
[312547905,1705961448126,-151.0,0.00041096,14]
[312547906,1705961448135,-151.0,0.00041096,14]
[312547907,1705961448144,-151.0,0.00041096,14]
[312547908,1705961448153,-151.0,0.00041096,14]
[312547909,1705961448163,-266.18,0.00041096,14]
[312547910,1705961448171,-303.903429,0.00041096,14]
[312547911,1705961448181,-303.903429,0.00041096,14]
[312547912,1705961448190,-303.903429,0.00041096,14]
[312547913,1705961448201,-303.903429,0.00041096,14]
[312547914,1705961448211,-151.0,0.00041096,14]
[312547915,1705961448220,-200.881412,0.00041096,14]
[312547916,1705961448230,-151.0,0.00041096,14]
[312547917,1705961448240,-151.0,0.00041096,14]
[312547918,1705961448250,-151.0,0.00041096,2]
[312547919,1705961448260,-151.0,0.00041096,2]
[312547920,1705961448271,-151.0,0.00041096,2]
[312547921,1705961448280,-151.0,0.00041096,2]
[312547922,1705961448290,-151.0,0.00041096,14]
[312547923,1705961448300,-151.0,0.00041096,14]
[312547924,1705961448310,-151.0,0.00041096,14]
[312547925,1705961448319,-151.0,0.00041096,14]
[312547926,1705961448327,-151.0,0.00041096,14]
[312547927,1705961448336,-151.0,0.00041096,14]
[312547928,1705961448346,-152.559194,0.00041096,14]
[312547929,1705961448357,-152.559194,0.00041096,14]
[312547930,1705961448366,-152.559194,0.00041096,14]
[312547931,1705961448375,-152.559194,0.00041096,14]
[312547932,1705961448384,-151.0,0.00041096,14]
[312547933,1705961448393,-151.0,0.00041096,14]
[312547934,1705961448402,-159.238064,0.00041096,14]
[312547935,1705961448411,-241.174263,0.00041096,14]
[312547936,1705961448420,-241.174263,0.00041096,14]
[312547937,1705961448429,-241.174263,0.00041096,14]
[312547938,1705961448438,-241.174263,0.00041096,14]
[312547939,1705961448447,-164.076039,0.00041096,14]
[312547940,1705961448456,-236.813167,0.00041096,14]
[312547941,1705961448465,-151.0,0.00041096,14]
[312547942,1705961448474,-199.480002,0.00041096,14]